fUST/lending_fUST_20240727
["ID","MTS","AMOUNT","RATE_DAILY","PERIOD"]
[333302265,1722045400745,-1367.45,0.00013698,2]
[333302266,1722045400768,-500.0,0.00013698,2]
[333302267,1722045400791,-605.65908967,0.00013698,2]
[333302268,1722045400816,-500.0,0.00013698,2]
[333302269,1722045400840,-500.0,0.00013698,2]
[333302270,1722045400862,-500.0,0.00013698,2]
[333302271,1722045401029,-1023.94,0.00013698,2]
[333302272,1722045401055,-1183.21,0.00013698,2]
[333302273,1722045401079,-608.47706536,0.00013698,2]
[333302274,1722045401102,-589.36,0.00013698,2]
[333302275,1722045401125,-500.0,0.00013698,2]
[333302276,1722045401148,-500.0,0.00013698,2]
[333302277,1722045401170,-500.0,0.00013698,2]
[333302278,1722045401193,-151.0,0.00013698,2]
[333302279,1722045401215,-159.994502,0.00013698,2]
[333302280,1722045401238,-508.43378635,0.00013698,2]
[333302281,1722045401262,-159.994502,0.00013698,2]
[333302282,1722045401284,-380.71294419,0.00013698,2]
[333302283,1722045401310,-500.0,0.00013698,2]
[333302284,1722045401333,-892.14,0.00013698,2]
[333302285,1722045401356,-500.0,0.00013698,2]
[333302286,1722045401379,-593.52769428,0.00013698,2]
[333302287,1722045401403,-1283.13,0.00013698,2]
[333302288,1722045401426,-500.0,0.00013698,2]
[333302289,1722045401451,-153.836669,0.00013698,2]
[333302290,1722045401474,-639.83,0.00013698,2]
[333302291,1722045401497,-500.0,0.00013698,2]
[333302292,1722045401522,-582.24,0.00013698,2]
[333302293,1722045401547,-218.83543061,0.00013698,2]
[333302294,1722045401573,-506.07501542,0.00013698,2]
[333302295,1722045401597,-752.58,0.00013698,2]
[333302296,1722045401622,-784.74,0.00013698,2]
[333302297,1722045401651,-500.0,0.00013698,2]
[333302298,1722045401677,-500.0,0.00013698,2]
[333302299,1722045401702,-604.31,0.00013698,2]
[333302300,1722045401729,-500.0,0.00013698,2]
[333302301,1722045401755,-500.0,0.00013698,2]
[333302302,1722045401778,-686.57,0.00013698,2]
[333302303,1722045401806,-660.2,0.00013698,2]
[333302304,1722045401835,-500.0,0.00013698,2]
[333302305,1722045401860,-507.32272175,0.00013698,2]
[333302306,1722045401885,-500.0,0.00013698,2]
[333302307,1722045401912,-549.12,0.00013698,2]
[333302308,1722045401939,-2628.15,0.00013698,2]
[333302309,1722045401967,-500.0,0.00013698,2]
[333302310,1722045401989,-500.0,0.00013698,2]
[333302311,1722045402013,-500.0,0.00013698,2]
[333302312,1722045402039,-500.0,0.00013698,2]
[333302313,1722045402067,-931.26,0.00013698,2]
[333302314,1722045402089,-500.0,0.00013698,2]
[333302315,1722045402115,-805.07,0.00013698,2]
[333302316,1722045402139,-792.71,0.00013698,2]
[333302317,1722045402165,-1001.2,0.00013698,2]
[333302318,1722045402188,-610.19,0.00013698,2]
[333302319,1722045402211,-500.0,0.00013698,2]
[333302320,1722045402237,-500.0,0.00013698,2]
[333302321,1722045402261,-1172.89,0.00013698,2]
[333302322,1722045402284,-500.0,0.00013698,2]
[333302323,1722045402309,-500.0,0.00013698,2]
[333302324,1722045402334,-1011.83,0.00013698,2]
[333302325,1722045402358,-6204.16,0.00013698,2]
[333302326,1722045402382,-500.0,0.00013698,2]
[333302327,1722045402406,-500.0,0.00013698,2]
[333302328,1722045402434,-500.0,0.00013698,2]
[333302329,1722045402460,-827.14,0.00013698,2]
[333302330,1722045402489,-3349.49,0.00013698,2]
[333302331,1722045402516,-5239.87154032,0.00013698,2]
[333302332,1722045402541,-2113.49479161,0.00013698,2]
[333302333,1722045402572,-805.96,0.00013698,2]
[333302334,1722045402596,-500.0,0.00013698,2]
[333302335,1722045402618,-803.53,0.00013698,2]
[333302336,1722045402640,-500.0,0.00013698,2]
[333302337,1722045402662,-960.63,0.00013698,2]
[333302338,1722045402686,-938.61,0.00013698,2]
[333302339,1722045402710,-781.31,0.00013698,2]
[333302340,1722045402736,-2363.25,0.00013698,2]
[333302341,1722045402761,-1115.11,0.00013698,2]
[333302342,1722045402783,-500.0,0.00013698,2]
[333302343,1722045402811,-500.0,0.00013698,2]
[333302344,1722045402837,-500.0,0.00013698,2]
[333302345,1722045402861,-1444.92,0.00013698,2]
[333302346,1722045402886,-944.28,0.00013698,2]
[333302347,1722045402911,-500.0,0.00013698,2]
[333302348,1722045402935,-500.0,0.00013698,2]
[333302349,1722045402966,-1202.44,0.00013698,2]
[333302350,1722045402988,-783.08,0.00013698,2]
[333302351,1722045403012,-500.0,0.00013698,2]
[333302352,1722045403042,-512.63939546,0.00013698,2]
[333302353,1722045403069,-500.0,0.00013698,2]
[333302354,1722045403092,-500.0,0.00013698,2]
[333302355,1722045403116,-600.84,0.00013698,2]
[333302356,1722045403140,-500.0,0.00013698,2]
[333302357,1722045403164,-661.18,0.00013698,2]
[333302358,1722045403188,-500.0,0.00013698,2]
[333302359,1722045403213,-761.99,0.00013698,2]
[333302360,1722045403237,-500.0,0.00013698,2]
[333302361,1722045403260,-500.0,0.00013698,2]
[333302362,1722045403284,-500.0,0.00013698,2]
[333302363,1722045403309,-1856.98,0.00013698,2]
[333302364,1722045403338,-1533.34,0.00013698,2]
[333302365,1722045403365,-1533.34,0.00013698,2]
[333302366,1722045403390,-500.0,0.00013698,2]
[333302367,1722045403421,-1533.34,0.00013698,2]
[333302368,1722045403447,-1533.34,0.00013698,2]
[333302369,1722045403472,-1533.34,0.00013698,2]
[333302370,1722045403497,-1533.34,0.00013698,2]
[333302371,1722045403521,-500.0,0.00013698,2]
[333302372,1722045403545,-2834.18,0.00013698,2]
[333302373,1722045403568,-2365.15,0.00013698,2]
[333302374,1722045403592,-523.36,0.00013698,2]
[333302375,1722045403615,-1183.27,0.00013698,2]
[333302376,1722045403640,-2068.83,0.00013698,2]
[333302377,1722045403665,-2182.24,0.00013698,2]
[333302378,1722045403689,-579.49277326,0.00013698,2]
[333302379,1722045403713,-500.0,0.00013698,2]
[333302380,1722045403738,-500.0,0.00013698,2]
[333302381,1722045403765,-5272.11,0.00013698,2]
[333302382,1722045403789,-1590.86,0.00013698,2]
[333302383,1722045403812,-500.0,0.00013698,2]
[333302384,1722045403835,-500.0,0.00013698,2]
[333302385,1722045403858,-666.64,0.00013698,2]
[333302386,1722045403882,-500.0,0.00013698,2]
[333302387,1722045403906,-500.0,0.00013698,2]
[333302388,1722045403930,-500.0,0.00013698,2]
[333302389,1722045403958,-1218.85,0.00013698,2]
[333302390,1722045403984,-2172.83,0.00013698,2]
[333302391,1722045404007,-500.0,0.00013698,2]
[333302392,1722045404030,-500.0,0.00013698,2]
[333302393,1722045404055,-500.0,0.00013698,2]
[333302394,1722045404079,-1106.51,0.00013698,2]
[333302395,1722045404104,-2088.52,0.00013698,2]
[333302396,1722045404128,-500.0,0.00013698,2]
[333302397,1722045404151,-500.0,0.00013698,2]
[333302398,1722045404174,-500.0,0.00013698,2]
[333302399,1722045404198,-500.0,0.00013698,2]
[333302400,1722045404223,-535.61,0.00013698,2]
[333302401,1722045404248,-500.0,0.00013698,2]
[333302402,1722045404272,-500.0,0.00013698,2]
[333302403,1722045404298,-500.0,0.00013698,2]
[333302404,1722045404324,-8378.69,0.00013698,2]
[333302405,1722045404349,-510.62842906,0.00013698,2]
[333302406,1722045404372,-500.0,0.00013698,2]
[333302407,1722045404396,-526.54725695,0.00013698,2]
[333302408,1722045404418,-513.11310928,0.00013698,2]
[333302409,1722045404443,-500.0,0.00013698,2]
[333302410,1722045404467,-3610.35,0.00013698,2]
[333302411,1722045404492,-718.46,0.00013698,2]
[333302412,1722045404519,-500.0,0.00013698,2]
[333302413,1722045404547,-1268.15,0.00013698,2]
[333302414,1722045404575,-1616.86,0.00013698,2]
[333302415,1722045404601,-500.0,0.00013698,2]
[333302416,1722045404626,-501.80649012,0.00013698,2]
[333302417,1722045404650,-500.0,0.00013698,2]
[333302418,1722045404676,-500.0,0.00013698,2]
[333302419,1722045404701,-500.0,0.00013698,2]
[333302420,1722045404727,-500.0,0.00013698,2]
[333302421,1722045404754,-500.0,0.00013698,2]
[333302422,1722045404779,-500.0,0.00013698,2]
[333302423,1722045404804,-582.60472691,0.00013698,2]
[333302424,1722045404831,-500.0,0.00013698,2]
[333302425,1722045404859,-2232.81,0.00013698,2]
[333302426,1722045404885,-151.0,0.00013699,2]
[333302427,1722045404914,-151.0,0.00013699,2]
[333302428,1722045404938,-241.46292,0.00013699,2]
[333302429,1722045404964,-150.112233,0.000137,2]
[333302430,1722045404991,-150.112233,0.000137,2]
[333302431,1722045405015,-153.0,0.000137,2]
[333302432,1722045405041,-150.112233,0.000137,2]
[333302433,1722045405068,-153.79357169,0.00013735,2]
[333302434,1722045405093,-150.503,0.0001375,2]
[333302435,1722045405119,-1409.0,0.0001375,2]
[333302436,1722045405144,-150.112233,0.000138,2]
[333302437,1722045405168,-150.112233,0.000138,2]
[333302438,1722045405193,-150.112233,0.000138,2]
[333302439,1722045405218,-153.79357169,0.00013804,2]
[333302440,1722045405244,-262.5411744,0.00013821,2]
[333302441,1722045405270,-13218.3727725,0.00013842,2]
[333302442,1722045405297,-151.0,0.00013852,2]
[333302443,1722045405322,-159.994502,0.00013852,2]
[333302444,1722045405346,-159.994502,0.00013852,2]
[333302445,1722045405373,-151.0,0.00013852,2]
[333302446,1722045405526,-2000.0,0.00013862,2]
[333302447,1722045405553,-153.79357169,0.00013872,2]
[333302448,1722045405576,-200.0,0.00013872,2]
[333302449,1722045405599,-623.29301517,0.00013885,2]
[333302450,1722045405622,-832.66471928,0.00013889,2]
[333302451,1722045405646,-151.0,0.00013889,2]
[333302452,1722045405671,-151.0,0.00013889,2]
[333302453,1722045405697,-150.112233,0.000139,2]
[333302454,1722045405721,-150.112233,0.000139,2]
[333302455,1722045405751,-1533.34,0.00013944,2]
[333302456,1722045405777,-161.60451,0.0001395,2]
[333302457,1722045405802,-272.31539,0.00013952,2]
[333302458,1722045405831,-272.31539,0.00013952,2]
[333302459,1722045405853,-151.0,0.00013952,2]
[333302460,1722045405876,-151.0,0.00013952,2]
[333302461,1722045405898,-151.0,0.00013959,2]
[333302462,1722045405923,-151.0,0.00013959,2]
[333302463,1722045405947,-280.556679,0.00013959,2]
[333302464,1722045405971,-530.02979,0.0001396,2]
[333302465,1722045405993,-530.02979,0.0001396,2]
[333302466,1722045406738,-371.19323,0.0001396,2]
[333302467,1722045406764,-371.19323,0.0001396,2]
[333302468,1722045406788,-13218.3727725,0.0001396,2]
[333302469,1722045406817,-1533.34,0.00013961,2]
[333302470,1722045406842,-1533.34,0.00013961,2]
[333302471,1722045406867,-1533.34,0.00013961,2]
[333302472,1722045406890,-449.09871657,0.00013961,2]
[333302473,1722045406915,-500.0,0.00013961,2]
[333302474,1722045406942,-321.9761239,0.00013961,2]
[333302475,1722045406970,-190.00888631,0.00013961,2]
[333302476,1722045406996,-500.0,0.00013961,2]
[333302477,1722045407020,-349.40786453,0.00013961,2]
[333302478,1722045407046,-500.0,0.00013961,2]
[333302479,1722045407072,-500.0,0.00013961,2]
[333302480,1722045407096,-500.0,0.00013961,2]
[333302481,1722045407122,-500.0,0.00013961,2]
[333302482,1722045407145,-500.0,0.00013961,2]
[333302483,1722045407170,-500.0,0.00013961,2]
[333302484,1722045407194,-500.0,0.00013961,2]
[333302485,1722045407218,-500.0,0.00013961,2]
[333302486,1722045407242,-500.0,0.00013961,2]
[333302487,1722045407268,-500.0,0.00013961,2]
[333302488,1722045407296,-500.0,0.00013961,2]
[333302489,1722045407320,-175.288428,0.00013962,2]
[333302490,1722045407345,-151.0,0.00013962,2]
[333302491,1722045407369,-151.0,0.00013962,2]
[333302492,1722045407392,-151.0,0.00013962,2]
[333302493,1722045407416,-151.0,0.00013962,2]
[333302494,1722045407440,-159.994502,0.00013962,2]
[333302495,1722045407465,-159.994502,0.00013962,2]
[333302496,1722045407489,-159.994502,0.00013962,2]
[333302497,1722045407512,-159.994502,0.00013962,2]
[333302498,1722045407951,-151.0,0.00013962,2]
[333302499,1722045407976,-151.0,0.00013962,2]
[333302500,1722045408000,-151.0,0.00013962,2]
[333302501,1722045408025,-151.0,0.00013962,2]
[333302502,1722045408050,-272.31539,0.00013962,2]
[333302503,1722045408075,-272.31539,0.00013962,2]
[333302504,1722045408100,-151.0,0.00013962,2]
[333302505,1722045408124,-151.0,0.00013962,2]
[333302506,1722045408149,-530.02979,0.00013962,2]
[333302507,1722045408176,-530.02979,0.00013962,2]
[333302508,1722045408200,-371.19323,0.00013962,2]
[333302509,1722045408225,-371.19323,0.00013962,2]
[333302510,1722045408251,-151.0,0.00013962,2]
[333302511,1722045408275,-250.697864,0.00013962,2]
[333302512,1722045408302,-52873.4910902,0.00013962,2]
[333302513,1722045408330,-1533.34,0.00013971,2]
[333302514,1722045408359,-1533.34,0.00013971,2]
[333302515,1722045408387,-1533.34,0.00013971,2]
[333302516,1722045408414,-1533.34,0.00013971,2]
[333302517,1722045408443,-1533.34,0.00013971,2]
[333302518,1722045408468,-1533.34,0.00013971,2]
[333302519,1722045408495,-1533.34,0.00013971,2]
[333302520,1722045408521,-29.85667282,0.00013971,2]
[333302521,1722045931477,-197.826533,0.00013425,2]
[333302522,1722045931498,-493.26217462,0.00013598,2]
[333302523,1722046033143,-165.38471008,9.999e-05,2]
[333302524,1722046033164,-231.11479154,9.999e-05,2]
[333302525,1722046033185,-154.98041376,9.999e-05,2]
[333302526,1722046033207,-155.11425571,9.999e-05,2]
[333302527,1722046033229,-180.89736425,9.999e-05,2]
[333302528,1722046033249,-155.01369955,9.999e-05,2]
[333302529,1722046033271,-155.4437676,0.0001,2]
[333302530,1722046033299,-154.36890856,0.00013598,2]
[333302531,1722046033323,-8591.94230216,0.00013688,2]
[333302532,1722046033342,-500.0,0.00013698,2]
[333302533,1722046033364,-500.0,0.00013698,2]
[333302534,1722046033384,-500.0,0.00013698,2]
[333302535,1722046033404,-500.0,0.00013698,2]
[333302536,1722046033424,-500.0,0.00013698,2]
[333302537,1722046033446,-500.0,0.00013698,2]
[333302538,1722046033468,-500.0,0.00013698,2]
[333302539,1722046033489,-533.14,0.00013698,2]
[333302540,1722046033510,-500.0,0.00013698,2]
[333302541,1722046033530,-505.5390691,0.00013698,2]
[333302542,1722046033551,-764.83,0.00013698,2]
[333302543,1722046033571,-500.0,0.00013698,2]
[333302544,1722046033593,-500.0,0.00013698,2]
[333302545,1722046033616,-505.32615552,0.00013698,2]
[333302546,1722046033637,-500.0,0.00013698,2]
[333302547,1722046033658,-502.33610502,0.00013698,2]
[333302548,1722046033678,-507.15592366,0.00013698,2]
[333302549,1722046033698,-864.99,0.00013698,2]
[333302550,1722046033718,-500.0,0.00013698,2]
[333302551,1722046033742,-500.0,0.00013698,2]
[333302552,1722046033766,-1834.23,0.00013698,2]
[333302553,1722046033788,-500.0,0.00013698,2]
[333302554,1722046033809,-500.0,0.00013698,2]
[333302555,1722046033830,-500.0,0.00013698,2]
[333302556,1722046033850,-1310.47,0.00013698,2]
[333302557,1722046033871,-505.86005277,0.00013698,2]
[333302558,1722046033892,-500.0,0.00013698,2]
[333302559,1722046033912,-500.0,0.00013698,2]
[333302560,1722046033932,-500.0,0.00013698,2]
[333302561,1722046033952,-517.98173216,0.00013698,2]
[333302562,1722046033972,-500.0,0.00013698,2]
[333302563,1722046033993,-500.0,0.00013698,2]
[333302564,1722046034013,-500.0,0.00013698,2]
[333302565,1722046034034,-1201.32,0.00013698,2]
[333302566,1722046034055,-608.56,0.00013698,2]
[333302567,1722046034076,-500.0,0.00013698,2]
[333302568,1722046034099,-500.0,0.00013698,2]
[333302569,1722046034118,-788.27,0.00013698,2]
[333302570,1722046034140,-500.0,0.00013698,2]
[333302571,1722046034161,-500.0,0.00013698,2]
[333302572,1722046034184,-939.94,0.00013698,2]
[333302573,1722046034207,-500.0,0.00013698,2]
[333302574,1722046034228,-500.0,0.00013698,2]
[333302575,1722046034250,-1160.04,0.00013698,2]
[333302576,1722046034280,-1229.67,0.00013698,2]
[333302577,1722046034303,-613.17,0.00013698,2]
[333302578,1722046034324,-500.0,0.00013698,2]
[333302579,1722046034346,-500.0,0.00013698,2]
[333302580,1722046034368,-500.0,0.00013698,2]
[333302581,1722046034389,-721.23,0.00013698,2]
[333302582,1722046034410,-500.0,0.00013698,2]
[333302583,1722046034430,-500.0,0.00013698,2]
[333302584,1722046034452,-500.0,0.00013698,2]
[333302585,1722046034472,-507.00078858,0.00013698,2]
[333302586,1722046034492,-500.0,0.00013698,2]
[333302587,1722046034513,-747.04,0.00013698,2]
[333302588,1722046034534,-500.0,0.00013698,2]
[333302589,1722046034555,-579.13,0.00013698,2]
[333302590,1722046034578,-500.0,0.00013698,2]
[333302591,1722046034600,-511.56740641,0.00013698,2]
[333302592,1722046034621,-504.43582993,0.00013698,2]
[333302593,1722046034643,-657.97,0.00013698,2]
[333302594,1722046034665,-500.0,0.00013698,2]
[333302595,1722046034688,-500.0,0.00013698,2]
[333302596,1722046034710,-500.0,0.00013698,2]
[333302597,1722046034733,-505.07445408,0.00013698,2]
[333302598,1722046034757,-255.14315066,0.00013698,2]
[333302599,1722046034780,-605.78,0.00013698,2]
[333302600,1722046034803,-802.46,0.00013698,2]
[333302601,1722046034824,-632.69,0.00013698,2]
[333302602,1722046034844,-500.0,0.00013698,2]
[333302603,1722046034864,-500.0,0.00013698,2]
[333302604,1722046034885,-506.0594413,0.00013698,2]
[333302605,1722046034908,-500.0,0.00013698,2]
[333302606,1722046034931,-500.0,0.00013698,2]
[333302607,1722046034958,-500.0,0.00013698,2]
[333302608,1722046034985,-1168.06,0.00013698,2]
[333302609,1722046035008,-771.53,0.00013698,2]
[333302610,1722046035032,-500.0,0.00013698,2]
[333302611,1722046035056,-1060.4,0.00013698,2]
[333302612,1722046035080,-2082.3,0.00013698,2]
[333302613,1722046035105,-513.29,0.00013698,2]
[333302614,1722046035129,-500.0,0.00013698,2]
[333302615,1722046035150,-504.73854438,0.00013698,2]
[333302616,1722046035172,-500.0,0.00013698,2]
[333302617,1722046035194,-263.78998449,0.00013698,2]
[333302618,1722046035216,-969.67,0.00013698,2]
[333302619,1722046035236,-2001.5,0.00013698,2]
[333302620,1722046035257,-346.17201248,0.00013698,2]
[333302621,1722046035281,-506.05448183,0.00013698,2]
[333302622,1722046035307,-8029.57,0.00013698,2]
[333302623,1722046035330,-500.0,0.00013698,2]
[333302624,1722046035357,-500.0,0.00013698,2]
[333302625,1722046035382,-500.0,0.00013698,2]
[333302626,1722046035404,-508.59142797,0.00013698,2]
[333302627,1722046035428,-500.0,0.00013698,2]
[333302628,1722046035452,-3459.92,0.00013698,2]
[333302629,1722046035476,-1215.31,0.00013698,2]
[333302630,1722046035497,-738.79,0.00013698,2]
[333302631,1722046035519,-500.0,0.00013698,2]
[333302632,1722046035540,-500.0,0.00013698,2]
[333302633,1722046035563,-500.0,0.00013698,2]
[333302634,1722046035586,-1696.48,0.00013698,2]
[333302635,1722046035607,-688.52,0.00013698,2]
[333302636,1722046035628,-981.28,0.00013698,2]
[333302637,1722046035650,-2518.65,0.00013698,2]
[333302638,1722046035670,-500.0,0.00013698,2]
[333302639,1722046035691,-500.0,0.00013698,2]
[333302640,1722046035712,-500.0,0.00013698,2]
[333302641,1722046035732,-1384.72,0.00013698,2]
[333302642,1722046035755,-526.24,0.00013698,2]
[333302643,1722046035777,-892.45,0.00013698,2]
[333302644,1722046035802,-500.0,0.00013698,2]
[333302645,1722046035824,-500.0,0.00013698,2]
[333302646,1722046035846,-584.76,0.00013698,2]
[333302647,1722046035867,-500.0,0.00013698,2]
[333302648,1722046035888,-500.0,0.00013698,2]
[333302649,1722046035909,-633.63,0.00013698,2]
[333302650,1722046035930,-377.70933765,0.00013698,2]
[333302651,1722046035952,-959.48,0.00013698,2]
[333302652,1722046035986,-759.68,0.00013698,2]
[333302653,1722046036007,-1511.27274689,0.00013698,2]
[333302654,1722046160086,-225.4386534,9.999e-05,2]
[333302655,1722046160107,-305.96268298,9.999e-05,2]
[333302656,1722046160128,-157.13902672,9.999e-05,2]
[333302657,1722046160148,-322.06313199,9.999e-05,2]
[333302658,1722046160342,-665.59924931,9.999e-05,2]
[333302659,1722046160366,-296.60041361,0.0001,2]
[333302660,1722046160390,-185.02912036,0.0001,2]
[333302661,1722046210925,182.98285056,9.999e-05,2]
[333302766,1722046238399,-565.11404471,0.00013598,2]
[333302768,1722046238410,-660.34,0.00013698,2]
[333302769,1722046238421,-500.0,0.00013698,2]
[333302770,1722046238430,-500.0,0.00013698,2]
[333302771,1722046238440,-500.0,0.00013698,2]
[333302772,1722046238452,-500.0,0.00013698,2]
[333302773,1722046238462,-638.86,0.00013698,2]
[333302774,1722046238472,-498.61767145,0.00013698,2]
[333302775,1722046239623,-1.38232855,0.00013698,2]
[333302776,1722046239633,-500.0,0.00013698,2]
[333302777,1722046239643,-347.15811497,0.00013698,2]
[333302778,1722046239655,-1744.15188503,0.00013698,2]
[333302779,1722046239665,-2716.09,0.00013698,2]
[333302780,1722046239674,-1133.97,0.00013698,2]
[333302781,1722046239683,-500.0,0.00013698,2]
[333302782,1722046239693,-1982.63,0.00013698,2]
[333302783,1722046239703,-500.0,0.00013698,2]
[333302784,1722046239715,-500.0,0.00013698,2]
[333302785,1722046239725,-1461.04,0.00013698,2]
[333302786,1722046239734,-5052.44,0.00013698,2]
[333302787,1722046239743,-500.0,0.00013698,2]
[333302788,1722046239753,-500.0,0.00013698,2]
[333302789,1722046239762,-500.0,0.00013698,2]
[333302790,1722046239771,-500.0,0.00013698,2]
[333302791,1722046239781,-1119.39,0.00013698,2]
[333302792,1722046239790,-1995.53,0.00013698,2]
[333302793,1722046239800,-500.0,0.00013698,2]
[333302794,1722046239809,-500.0,0.00013698,2]
[333302795,1722046239819,-1016.22,0.00013698,2]
[333302796,1722046239829,-1918.1,0.00013698,2]
[333302798,1722046239839,-500.0,0.00013698,2]
[333302800,1722046239849,-500.0,0.00013698,2]
[333302801,1722046239860,-500.0,0.00013698,2]
[333302802,1722046239869,-500.0,0.00013698,2]
[333302803,1722046239879,-500.0,0.00013698,2]
[333302804,1722046239889,-1164.68,0.00013698,2]
[333302805,1722046239899,-202.91990731,0.00013698,2]
[333302813,1722046240957,-263.79,0.00013698,2]
[333302820,1722046243411,-691.20706109,0.00013698,2]
[333302821,1722046243618,-6436.29801982,0.00013698,2]
[333302833,1722046246463,-100.79501178,0.00013698,2]
[333302834,1722046246473,-500.0,0.00013698,2]
[333302835,1722046246482,-500.0,0.00013698,2]
[333302836,1722046246492,-2413.7,0.00013698,2]
[333302837,1722046246504,-659.83,0.00013698,2]
[333302838,1722046246514,-1191.87494822,0.00013698,2]
[333302839,1722046246782,-2123.88505178,0.00013698,2]
[333302842,1722046246796,-500.0,0.00013698,2]
[333302844,1722046246807,-500.0,0.00013698,2]
[333302846,1722046246816,-770.04,0.00013698,2]
[333302848,1722046246826,-1625.79,0.00013698,2]
[333302850,1722046246836,-500.0,0.00013698,2]
[333302852,1722046246849,-504.32,0.00013698,2]
[333302854,1722046246859,-855.27,0.00013698,2]
[333302856,1722046246869,-500.0,0.00013698,2]
[333302858,1722046246878,-500.0,0.00013698,2]
[333302859,1722046246888,-500.0,0.00013698,2]
[333302860,1722046246898,-828.95,0.00013698,2]
[333302861,1722046246908,-500.0,0.00013698,2]
[333302862,1722046246918,-1757.81,0.00013698,2]
[333302863,1722046246929,-919.5,0.00013698,2]
[333302864,1722046246940,-748.75,0.00013698,2]
[333302865,1722046246953,-500.0,0.00013698,2]
[333302866,1722046246963,-2073.48,0.00013698,2]
[333302867,1722046246973,-560.4,0.00013698,2]
[333302868,1722046246983,-504.56029771,0.00013698,2]
[333302869,1722046246992,-728.03,0.00013698,2]
[333302870,1722046247002,-1124.02,0.00013698,2]
[333302871,1722046247011,-1255.87,0.00013698,2]
[333302872,1722046247021,-500.0,0.00013698,2]
[333302873,1722046247031,-3209.93,0.00013698,2]
[333302874,1722046247040,-792.67,0.00013698,2]
[333302875,1722046247050,-500.0,0.00013698,2]
[333302876,1722046247060,-493.60465051,0.00013698,2]
[333302877,1722046258435,182.98285056,0.00012121,2]
[333302878,1722046285626,154.82394943,9.999e-05,2]
[333302879,1722046301329,200.0,0.0001,2]
[333302880,1722046301383,400.0,0.0001137,2]
[333302881,1722046307961,209.14722808,9.999e-05,2]
[333302882,1722046328796,850.00911267,0.0001212,2]
[333302888,1722047147148,-301.87435432,9.899e-05,2]
[333302889,1722047147173,-200.0,9.9e-05,2]
[333302890,1722047147196,-430.09926451,9.999e-05,2]
[333302892,1722047191101,-65.27994132,9.999e-05,2]
[333302893,1722047191127,-206.16360286,0.0001127,2]
[333302894,1722047228090,-170.06312137,0.0001,2]
[333302895,1722047242168,-23.77327577,0.0001,2]
[333302896,1722047242194,-234.28341142,0.00012119,2]
[333302897,1722047242219,-198.913267,0.00013425,2]
[333302898,1722047242246,-412.06978609,0.00013598,2]
[333302899,1722047242271,-412.06978605,0.00013667,2]
[333302900,1722047242297,-10228.7149973,0.00013688,2]
[333302901,1722047242321,-1006.66301897,0.00013697,2]
[333302902,1722047242348,-504.77150617,0.00013698,2]
[333302903,1722047242373,-505.86770827,0.00013698,2]
[333302904,1722047242398,-500.0,0.00013698,2]
[333302905,1722047242423,-500.0,0.00013698,2]
[333302906,1722047242449,-732.96,0.00013698,2]
[333302907,1722047242473,-500.0,0.00013698,2]
[333302908,1722047242499,-500.0,0.00013698,2]
[333302909,1722047242525,-336.86075708,0.00013698,2]
[333302914,1722047345161,-376.43973289,9.999e-05,2]
[333302915,1722047349972,182.98285056,9.999e-05,2]